[Event "WYCC U18 Girls 2019"]
[Site "Mumbai"]
[Date "2019.10.04"]
[Round "4.5"]
[White "Radeva, Viktoria"]
[Black "Tarini Goyal"]
[Result "1-0"]
[ECO "B10"]
[WhiteElo "2277"]
[BlackElo "2128"]
[Annotator "NA"]
[PlyCount "87"]
[EventDate "2019.10.02"]
[EventType "swiss"]
[EventCountry "IND"]
[SourceTitle "playchess.com"]
[Source "ChessBase"]
[SourceQuality "1"]
[TimeControl "40/5400+30:1800+30"]

1. e4 {[%emt 0:00:00]} c6 {[%emt 0:00:05]} 2. Nc3 {[%emt 0:00:00]} d5 {[%emt 0:00:10]} 3. Nf3 {[%emt 0:00:00]} Nf6 {[%emt 0:00:59]} 4. e5 {[%emt 0:00:01]} Ne4 {[%emt 0:00:06]} 5. Ne2 {[%emt 0:00:08]} Qb6 {[%emt 0:00:15]} 6. d4 {[%emt 0:00:11]} e6 {[%emt 0:01:54]} 7. Ng3 {[%emt 0:01:31]} Nxg3 {[%emt 0:02:47]} 8. hxg3 {[%emt 0:00:11]} c5 {[%emt 0:01:17]} 9. c3 {[%emt 0:02:50]} Nc6 {[%emt 0:03:59]} 10. Bd3 {[%emt 0:02:26]} Bd7 {[%emt 0:06:29]} 11. Kf1 {[%emt 0:02:22]} cxd4 {[%emt 0:03:50]} 12. cxd4 {[%emt 0:00:05]} Rc8 {[%emt 0:04:28]} 13. a3 {[%emt 0:12:26]} Na5 {[%emt 0:03:55]} 14. b4 {[%emt 0:34:32]} Nc4 {[%emt 0:01:58]} 15. Rxh7 {[%emt 0:03:47]} Rxh7 16. Bxh7 {[%emt 0:00:05]} Qa6 {[%emt 0:16:59]} 17. Kg1 {[%emt 0:02:46]} Bxb4 {[%emt 0:11:21]} 18. Ng5 {[%emt 0:02:48]} Kd8 {[%emt 0:08:50]} 19. Qf3 {[%emt 0:07:07]} Kc7 {[%emt 0:07:53]} 20. Rb1 {[%emt 0:07:13]} Be7 {[%emt 0:04:22]} 21. Qxf7 {[%emt 0:02:33]} Bxg5 {[%emt 0:06:24]} 22. Bxg5 {[%emt 0:00:12]} Qxa3 {[%emt 0:00:41]} 23. Qxg7 {[%emt 0:00:51]} Qc3 {[%emt 0:06:30]} 24. Bg8 {[%emt 0:03:50]} Qd3 {[%emt 0:00:21]} 25. Rc1 {[%emt 0:05:09]} Qf5 {[%emt 0:01:09]} 26. Bf6 {[%emt 0:00:42]} a5 {[%emt 0:05:07]} 27. Bh7 {[%emt 0:07:21]} Qh5 {[%emt 0:00:09]} 28. g4 {[%emt 0:00:21]} Qe8 {[%emt 0:00:09]} 29. g5 {[%emt 0:00:47]} a4 {[%emt 0:01:13]} 30. Be7 {[%emt 0:01:08]} Kb8 {[%emt 0:00:49]} 31. Bg6 {[%emt 0:00:32]} Qh8 {[%emt 0:00:29]} 32. Qxh8 {[%emt 0:00:30]} Rxh8 {[%emt 0:00:02]} 33. Bf6 {[%emt 0:00:18]} Rc8 {[%emt 0:00:31]} 34. Bf7 {[%emt 0:00:29]} b5 {[%emt 0:01:02]} 35. Be7 {[%emt 0:00:33]} Be8 {[%emt 0:00:41]} 36. Bxe6 {[%emt 0:00:41]} Rc7 {[%emt 0:00:06]} 37. Bb4 {[%emt 0:00:11]} a3 {[%emt 0:00:45]} 38. Bxd5 {[%emt 0:00:22]} a2 {[%emt 0:00:09]} 39. Bc5 {[%emt 0:01:28]} Bg6 {[%emt 0:00:36]} 40. Ra1 {[%emt 0:00:48]} Bb1 {[%emt 0:00:15]} 41. e6 {[%emt 0:01:34]} Rc8 {[%emt 0:10:43]} 42. e7 {[%emt 0:01:15]} Kc7 {[%emt 0:00:25]} 43. Bf7 {[%emt 0:01:02]} Kd7 {[%emt 0:00:07]} 44. g6 {[%emt 0:07:59] Kd6} 1-0

[Event "WYCC U18 Girls 2019"]
[Site "Mumbai"]
[Date "2019.10.04"]
[Round "4.6"]
[White "Nilssen, Ellen Fredericia"]
[Black "Harshini A"]
[Result "1/2-1/2"]
[ECO "D85"]
[WhiteElo "2137"]
[BlackElo "2230"]
[Annotator "NA"]
[PlyCount "61"]
[EventDate "2019.10.02"]
[EventType "swiss"]
[EventCountry "IND"]
[SourceTitle "playchess.com"]
[Source "ChessBase"]
[SourceQuality "1"]
[TimeControl "40/5400+30:1800+30"]

1. d4 {[%emt 0:00:00]} Nf6 {[%emt 0:00:18]} 2. c4 {[%emt 0:00:00]} g6 {[%emt 0:00:04]} 3. Nc3 {[%emt 0:00:00]} d5 {[%emt 0:00:03]} 4. cxd5 {[%emt 0:00:00]} Nxd5 {[%emt 0:00:04]} 5. e4 {[%emt 0:00:14]} Nxc3 {[%emt 0:00:05]} 6. bxc3 {[%emt 0:00:10]} Bg7 {[%emt 0:00:04]} 7. Be3 {[%emt 0:00:13]} c5 {[%emt 0:00:05]} 8. Qd2 {[%emt 0:00:07]} O-O {[%emt 0:00:39]} 9. Nf3 {[%emt 0:01:40]} Qa5 {[%emt 0:00:12]} 10. Rc1 {[%emt 0:00:14]} Rd8 {[%emt 0:00:42]} 11. d5 {[%emt 0:00:18]} Bg4 12. Be2 e6 13. Bg5 f6 14. Be3 exd5 15. exd5 Nd7 16. c4 Qxd2+ 17. Nxd2 Bxe2 18. Kxe2 b6 19. Nf3 Bf8 20. Rhe1 a6 21. Rb1 b5 22. cxb5 axb5 23. Rxb5 Rxa2+ 24. Kf1 Ne5 25. Nxe5 fxe5 26. Rd1 Rc2 27. Rb6 Bd6 28. Rc6 Kg7 29. h3 Rd7 30. Rc8 Be7 31. Rc6 1/2-1/2

[Event "WYCC U18 Girls 2019"]
[Site "Mumbai"]
[Date "2019.10.04"]
[Round "4.7"]
[White "Nomindalai Tumurbaatar"]
[Black "Schulze, Lara"]
[Result "0-1"]
[ECO "A45"]
[WhiteElo "2061"]
[BlackElo "2327"]
[Annotator "NA"]
[PlyCount "69"]
[EventDate "2019.10.02"]
[EventType "swiss"]
[EventCountry "IND"]
[SourceTitle "playchess.com"]
[Source "ChessBase"]
[SourceQuality "1"]
[TimeControl "40/5400+30:1800+30"]

1. d4 {[%emt 0:00:00]} Nf6 {[%emt 0:00:00]} 2. Bf4 {[%emt 0:00:00]} d5 {[%emt 0:00:00]} 3. e3 {[%emt 0:00:01]} c5 {[%emt 0:00:15]} 4. dxc5 {[%emt 0:01:12]} Nc6 {[%emt 0:00:00]} 5. Bb5 {[%emt 0:00:18]} e6 {[%emt 0:00:22]} 6. b4 {[%emt 0:00:23]} a5 {[%emt 0:00:22]} 7. c3 {[%emt 0:00:26]} Bd7 {[%emt 0:00:18]} 8. Qb3 {[%emt 0:06:08]} Nh5 {[%emt 0:01:16]} 9. Ne2 {[%emt 0:10:10]} Nxf4 {[%emt 0:00:30]} 10. Nxf4 {[%emt 0:00:30]} g5 {[%emt 0:00:30]} 11. Nh5 {[%emt 0:00:30]} g4 {[%emt 0:00:30]} 12. a3 {[%emt 0:00:30]} Qg5 {[%emt 0:00:30]} 13. Nf4 {[%emt 0:01:18]} Bg7 {[%emt 0:00:32]} 14. Ra2 {[%emt 0:00:30]} h5 {[%emt 0:00:30]} 15. Nd2 {[%emt 0:00:30]} Qe5 {[%emt 0:00:30]} 16. Ne2 {[%emt 0:00:30]} h4 {[%emt 0:00:30]} 17. Nd4 {[%emt 0:00:30]} Ke7 {[%emt 0:00:30]} 18. Be2 {[%emt 0:00:30]} g3 {[%emt 0:00:30]} 19. b5 {[%emt 0:00:30]} h3 {[%emt 0:00:30]} 20. gxh3 {[%emt 0:00:30]} gxf2+ {[%emt 0:00:30]} 21. Kxf2 {[%emt 0:00:30]} Qf6+ {[%emt 0:00:30]} 22. Ke1 {[%emt 0:00:30]} Ne5 {[%emt 0:00:30]} 23. a4 {[%emt 0:00:30]} Rxh3 {[%emt 0:00:30]} 24. Qa3 {[%emt 0:00:30]} Ke8 {[%emt 0:00:30]} 25. Nf1 {[%emt 0:00:30]} Qg6 {[%emt 0:00:30]} 26. b6 {[%emt 0:00:30]} Bf8 {[%emt 1:29:17]} 27. Kd1 {[%emt 1:14:45]} Qg2 {[%emt 0:01:02]} 28. Bf3 {[%emt 0:00:29]} Qg6 {[%emt 0:00:54]} 29. Rg2 {[%emt 0:00:37]} Qd3+ {[%emt 0:00:44]} 30. Rd2 {[%emt 0:00:40]} Qb1+ {[%emt 0:00:55]} 31. Ke2 {[%emt 0:00:04]} Nxf3 {[%emt 0:00:21]} 32. Nxf3 {[%emt 0:00:05]} Qe4 {[%emt 0:01:09]} 33. Ng3 {[%emt 0:00:17]} Qc4+ {[%emt 0:00:12]} 34. Kf2 {[%emt 0:00:46]} Bxc5 {[%emt 0:00:09]} 35. Qb2 {[%emt 0:00:07]} 0-1

[Event "WYCC U18 Girls 2019"]
[Site "Mumbai"]
[Date "2019.10.04"]
[Round "4.7"]
[White "Nomindalai Tumurbaatar"]
[Black "Schulze, Lara"]
[Result "*"]
[ECO "A45"]
[WhiteElo "2061"]
[BlackElo "2327"]
[Annotator "NA"]
[PlyCount "44"]
[EventDate "2019.10.02"]
[EventType "swiss"]
[EventCountry "IND"]
[SourceTitle "playchess.com"]
[Source "ChessBase"]
[SourceQuality "1"]
[TimeControl "40/5400+30:1800+30"]

1. d4 {[%emt 0:00:00]} Nf6 {[%emt 0:00:00]} 2. Bf4 {[%emt 0:00:00]} d5 {[%emt 0:00:00]} 3. e3 {[%emt 0:00:01]} c5 {[%emt 0:00:15]} 4. dxc5 {[%emt 0:01:12]} Nc6 {[%emt 0:00:00]} 5. Bb5 {[%emt 0:00:18]} e6 {[%emt 0:00:22]} 6. b4 {[%emt 0:00:23]} a5 {[%emt 0:00:22]} 7. c3 {[%emt 0:00:26]} Bd7 {[%emt 0:00:18]} 8. Qb3 {[%emt 0:06:08]} Nh5 {[%emt 0:01:16]} 9. Ne2 {[%emt 0:10:10]} Nxf4 {[%emt 0:00:30]} 10. Nxf4 {[%emt 0:00:30]} g5 {[%emt 0:00:30]} 11. Nh5 {[%emt 0:00:30]} g4 {[%emt 0:00:30]} 12. a3 {[%emt 0:00:30]} Qg5 {[%emt 0:00:30]} 13. Nf4 {[%emt 0:01:18]} Bg7 {[%emt 0:00:32]} 14. Ra2 {[%emt 0:00:30]} h5 {[%emt 0:00:30]} 15. Nd2 {[%emt 0:00:30]} Qe5 {[%emt 0:00:30]} 16. Ne2 {[%emt 0:00:30]} h4 {[%emt 0:00:30]} 17. Nd4 {[%emt 0:00:30]} Ke7 {[%emt 0:00:30]} 18. Be2 {[%emt 0:00:30]} g3 {[%emt 0:00:30]} 19. b5 {[%emt 0:00:30]} h3 {[%emt 0:00:30]} 20. gxh3 {[%emt 0:00:30]} gxf2+ {[%emt 0:00:30]} 21. Kxf2 {[%emt 0:00:30]} Qf6+ {[%emt 0:00:30]} 22. Ke1 {[%emt 0:00:30]} Rae8 {[%emt 0:00:30]} *

[Event "WYCC U18 Girls 2019"]
[Site "Mumbai"]
[Date "2019.10.04"]
[Round "4.8"]
[White "Afonasieva, Anna"]
[Black "Hamedi Nia, Vesal"]
[Result "1-0"]
[ECO "E09"]
[WhiteElo "2312"]
[BlackElo "2057"]
[Annotator "NA"]
[PlyCount "149"]
[EventDate "2019.10.02"]
[EventType "swiss"]
[EventCountry "IND"]
[SourceTitle "playchess.com"]
[Source "ChessBase"]
[SourceQuality "1"]
[TimeControl "40/5400+30:1800+30"]

1. d4 {[%emt 0:00:00]} d5 {[%emt 0:00:23]} 2. Nf3 {[%emt 0:00:00]} Nf6 {[%emt 0:00:10]} 3. c4 {[%emt 0:00:00]} e6 {[%emt 0:00:04]} 4. g3 {[%emt 0:00:00]} Bb4+ {[%emt 0:00:20]} 5. Bd2 {[%emt 0:00:00]} Be7 {[%emt 0:00:05]} 6. Bg2 {[%emt 0:00:06]} O-O {[%emt 0:00:06]} 7. O-O {[%emt 0:00:04]} Nbd7 {[%emt 0:01:56]} 8. Qc2 {[%emt 0:00:33]} c6 {[%emt 0:01:27]} 9. Bf4 {[%emt 0:01:04]} Nh5 {[%emt 0:06:01]} 10. Bc1 {[%emt 0:01:51]} Nhf6 {[%emt 0:01:49]} 11. Nbd2 {[%emt 0:00:50]} b6 {[%emt 0:02:58]} 12. e4 {[%emt 0:04:54]} dxe4 {[%emt 0:02:16]} 13. Nxe4 {[%emt 0:00:16]} Nxe4 {[%emt 0:01:04]} 14. Qxe4 {[%emt 0:00:04]} Bb7 {[%emt 0:05:26]} 15. Rd1 {[%emt 0:01:34]} Qc8 {[%emt 0:05:00]} 16. Qc2 {[%emt 0:07:22]} Rd8 {[%emt 0:11:36]} 17. b3 {[%emt 0:10:08]} c5 {[%emt 0:05:42]} 18. Bb2 {[%emt 0:02:26]} cxd4 {[%emt 0:02:32]} 19. Bxd4 {[%emt 0:00:13]} Bf6 {[%emt 0:00:38]} 20. Bxf6 {[%emt 0:06:03]} Nxf6 {[%emt 0:01:41]} 21. Rxd8+ {[%emt 0:00:14]} Qxd8 {[%emt 0:00:05]} 22. Rd1 {[%emt 0:00:07]} Qc7 {[%emt 0:01:21]} 23. Qd2 {[%emt 0:02:02]} h6 {[%emt 0:03:54]} 24. Qd4 {[%emt 0:03:31]} Rc8 {[%emt 0:03:58]} 25. Ne5 {[%emt 0:03:41]} Bxg2 {[%emt 0:00:19]} 26. Kxg2 {[%emt 0:00:03]} Qb7+ {[%emt 0:02:21]} 27. f3 {[%emt 0:01:49]} Qa6 {[%emt 0:00:46]} 28. Rd2 {[%emt 0:06:32]} Qa5 {[%emt 0:00:28]} 29. Qd6 {[%emt 0:02:01]} Qc5 {[%emt 0:17:50]} 30. Qxc5 {[%emt 0:00:51]} bxc5 {[%emt 0:00:20]} 31. Rd6 {[%emt 0:01:05]} Rc7 {[%emt 0:02:49]} 32. Rd8+ {[%emt 0:00:57]} Kh7 {[%emt 0:00:05]} 33. Rf8 {[%emt 0:00:07]} a6 {[%emt 0:06:39]} 34. Rxf7 {[%emt 0:00:38]} Rxf7 {[%emt 0:00:12]} 35. Nxf7 {[%emt 0:00:05]} Kg6 {[%emt 0:00:19]} 36. Nd6 {[%emt 0:03:25]} Nd7 {[%emt 0:00:39]} 37. f4 {[%emt 0:02:54]} Kf6 {[%emt 0:03:32]} 38. Kf3 {[%emt 0:01:47]} g6 {[%emt 0:02:53]} 39. a3 {[%emt 0:03:37]} e5 {[%emt 0:05:48]} 40. Ne8+ {[%emt 0:03:20]} Ke7 {[%emt 0:00:28]} 41. Nc7 {[%emt 0:30:11]} a5 {[%emt 0:31:33]} 42. Nd5+ {[%emt 0:16:21]} Kd6 {[%emt 0:01:21]} 43. Nc3 {[%emt 0:08:27]} exf4 {[%emt 0:00:00]} 44. Kxf4 {[%emt 0:00:00]} Ke6 {[%emt 0:00:00]} 45. h4 {[%emt 0:00:00]} Kf6 {[%emt 0:00:00]} 46. Ke4 {[%emt 0:00:00]} Ke6 {[%emt 0:00:00]} 47. Nd5 {[%emt 0:00:00]} Kd6 {[%emt 0:00:00]} 48. Nf4 {[%emt 0:00:00]} Nf6+ {[%emt 0:00:00]} 49. Kd3 {[%emt 0:00:00]} g5 {[%emt 0:00:00]} 50. hxg5 {[%emt 0:00:00]} hxg5 {[%emt 0:00:00]} 51. Nh3 {[%emt 0:00:00]} g4 {[%emt 0:00:52]} 52. Nf4 {[%emt 0:00:00]} Ke5 {[%emt 0:01:01]} 53. Ke3 {[%emt 0:02:09]} Kf5 {[%emt 0:01:32]} 54. Nd5 {[%emt 0:01:36]} Nxd5+ {[%emt 0:03:42]} 55. cxd5 {[%emt 0:00:05]} Ke5 {[%emt 0:00:07]} 56. d6 {[%emt 0:01:06]} Kxd6 {[%emt 0:00:02]} 57. Ke4 {[%emt 0:00:14]} Ke6 {[%emt 0:00:20]} 58. a4 {[%emt 0:00:30]} Kd6 {[%emt 0:01:01]} 59. Kf4 {[%emt 0:00:05]} Kd5 {[%emt 0:00:52]} 60. Kxg4 {[%emt 0:00:05]} Kd4 {[%emt 0:00:47]} 61. Kf5 {[%emt 0:00:39]} Kc3 {[%emt 0:00:08]} 62. g4 {[%emt 0:00:11]} Kxb3 {[%emt 0:00:03]} 63. g5 {[%emt 0:00:04]} c4 {[%emt 0:00:12]} 64. g6 {[%emt 0:00:06]} c3 {[%emt 0:00:05]} 65. g7 {[%emt 0:00:02]} c2 {[%emt 0:00:16]} 66. g8=Q+ {[%emt 0:00:06]} Kb2 {[%emt 0:00:24]} 67. Qg7+ {[%emt 0:05:54]} Kb1 {[%emt 0:00:48]} 68. Qb7+ {[%emt 0:00:15]} Ka1 {[%emt 0:00:28]} 69. Qh1+ {[%emt 0:03:28]} Kb2 {[%emt 0:00:13]} 70. Ke4 {[%emt 0:00:56]} c1=Q 71. Qxc1+ {[%emt 0:00:04]} Kxc1 {[%emt 0:00:45]} 72. Kd3 {[%emt 0:00:10]} Kb2 {[%emt 0:01:46]} 73. Kc4 {[%emt 0:00:04]} Ka3 {[%emt 0:01:30]} 74. Kb5 {[%emt 0:00:05]} Kb3 {[%emt 0:00:04]} 75. Kxa5 {[%emt 0:00:05]} 1-0

[Event "WYCC U18 Girls 2019"]
[Site "Mumbai"]
[Date "2019.10.04"]
[Round "4.10"]
[White "Nguyen, Hong Anh"]
[Black "Muetsch, Annmarie"]
[Result "0-1"]
[ECO "E91"]
[WhiteElo "2023"]
[BlackElo "2266"]
[Annotator "NA"]
[PlyCount "70"]
[EventDate "2019.10.02"]
[EventType "swiss"]
[EventCountry "IND"]
[SourceTitle "playchess.com"]
[Source "ChessBase"]
[SourceQuality "1"]
[TimeControl "40/5400+30:1800+30"]

1. d4 {[%emt 0:00:00]} Nf6 {[%emt 0:00:00]} 2. c4 {[%emt 0:00:00]} g6 {[%emt 0:00:00]} 3. Nc3 {[%emt 0:00:06]} Bg7 {[%emt 0:00:00]} 4. e4 {[%emt 0:00:24]} d6 {[%emt 0:00:01]} 5. Nf3 {[%emt 0:00:20]} O-O {[%emt 0:00:12]} 6. Be2 {[%emt 0:00:19]} Na6 {[%emt 0:00:38]} 7. O-O {[%emt 0:00:23]} e5 {[%emt 0:00:14]} 8. d5 {[%emt 0:00:46]} Nc5 {[%emt 0:00:36]} 9. Qc2 {[%emt 0:04:01]} a5 {[%emt 0:00:08]} 10. b3 Nh5 {[%emt 0:06:14]} 11. Be3 {[%emt 0:19:58]} b6 {[%emt 0:04:05]} 12. a3 {[%emt 0:03:00]} f5 {[%emt 0:06:10]} 13. exf5 {[%emt 0:10:25]} Bxf5 {[%emt 0:02:00]} 14. Qd1 {[%emt 0:02:07]} Nf4 {[%emt 0:06:59]} 15. b4 {[%emt 0:06:58]} Ne4 {[%emt 0:17:28]} 16. Nxe4 {[%emt 0:09:07]} Bxe4 {[%emt 0:00:06]} 17. Bxf4 {[%emt 0:00:24]} exf4 {[%emt 0:01:05]} 18. Ra2 {[%emt 0:07:11]} axb4 {[%emt 0:02:49]} 19. Qb3 {[%emt 0:01:17]} bxa3 {[%emt 0:00:57]} 20. Rxa3 {[%emt 0:00:22]} Qf6 {[%emt 0:04:38]} 21. Rxa8 {[%emt 0:05:39]} Rxa8 {[%emt 0:00:08]} 22. c5 bxc5 {[%emt 0:05:23]} 23. Qb7 {[%emt 0:01:45]} Qd8 {[%emt 0:01:15]} 24. Ng5 {[%emt 0:01:32]} Rb8 {[%emt 0:00:33]} 25. Qa7 {[%emt 0:04:19]} Bxd5 {[%emt 0:06:53]} 26. Bf3 {[%emt 0:01:39]} Bxf3 {[%emt 0:00:49]} 27. Nxf3 {[%emt 0:00:11]} h6 {[%emt 0:02:20]} 28. h4 {[%emt 0:01:27]} Rc8 {[%emt 0:08:30]} 29. Re1 {[%emt 0:01:03]} Qd7 {[%emt 0:01:04]} 30. Qa2+ {[%emt 0:02:27]} d5 {[%emt 0:06:08]} 31. Qc2 {[%emt 0:00:52]} Qd6 {[%emt 0:00:53]} 32. h5 {[%emt 0:02:53]} g5 {[%emt 0:03:46]} 33. Qf5 {[%emt 0:01:54]} Rf8 {[%emt 0:00:05]} 34. Qh3 {[%emt 0:00:19]} d4 {[%emt 0:03:04]} 35. Re6 {[%emt 0:00:22]} Qd5 {[%emt 0:00:05]} 0-1

[Event "WYCC U18 Girls 2019"]
[Site "Mumbai"]
[Date "2019.10.04"]
[Round "4.11"]
[White "Yan, Tianqi"]
[Black "Khachatryan, Anna"]
[Result "1-0"]
[ECO "B32"]
[WhiteElo "2236"]
[BlackElo "2044"]
[Annotator "NA"]
[PlyCount "69"]
[EventDate "2019.10.02"]
[EventType "swiss"]
[EventCountry "IND"]
[SourceTitle "playchess.com"]
[Source "ChessBase"]
[SourceQuality "1"]
[TimeControl "40/5400+30:1800+30"]

1. e4 {[%emt 0:00:00]} c5 {[%emt 0:00:00]} 2. Nf3 {[%emt 0:00:00]} Nc6 {[%emt 0:00:00]} 3. d4 {[%emt 0:00:00]} cxd4 {[%emt 0:00:00]} 4. Nxd4 {[%emt 0:00:00]} e5 {[%emt 0:00:00]} 5. Nb5 {[%emt 0:00:02]} d6 {[%emt 0:00:00]} 6. c4 {[%emt 0:00:24]} Be7 {[%emt 0:00:03]} 7. Bd3 {[%emt 0:06:46]} Be6 {[%emt 0:11:26]} 8. N5c3 {[%emt 0:02:49]} Nf6 {[%emt 0:02:00]} 9. Nd5 {[%emt 0:00:30]} O-O {[%emt 0:00:30]} 10. Nbc3 {[%emt 0:00:30]} Nd4 {[%emt 0:00:30]} 11. Be3 {[%emt 0:00:30]} Nxd5 {[%emt 0:00:30]} 12. exd5 {[%emt 0:00:30]} Bd7 {[%emt 0:00:30]} 13. Bxd4 {[%emt 0:00:30]} exd4 {[%emt 0:00:30]} 14. Ne2 {[%emt 0:00:30]} Bf6 {[%emt 0:00:30]} 15. O-O {[%emt 0:22:03]} Bg4 {[%emt 0:26:02]} 16. f3 {[%emt 0:02:21]} Bd7 {[%emt 0:00:16]} 17. Kh1 {[%emt 0:00:40]} Re8 {[%emt 0:01:03]} 18. Ng3 {[%emt 0:06:45]} Re3 {[%emt 0:23:34]} 19. Ne4 {[%emt 0:05:48]} Qe7 {[%emt 0:14:57]} 20. Qd2 {[%emt 0:01:34]} Re8 {[%emt 0:04:13]} 21. Rae1 {[%emt 0:06:15]} Bh4 {[%emt 0:02:36]} 22. g3 {[%emt 0:05:57]} f5 {[%emt 0:01:21]} 23. gxh4 {[%emt 0:00:29]} fxe4 {[%emt 0:00:03]} 24. Bxe4 {[%emt 0:01:48]} Rxe1 {[%emt 0:03:58]} 25. Rxe1 {[%emt 0:00:14]} Qxh4 {[%emt 0:00:18]} 26. Rg1 {[%emt 0:03:05]} Re5 {[%emt 0:04:33]} 27. Qxd4 {[%emt 0:02:25]} Bf5 {[%emt 0:00:03]} 28. c5 {[%emt 0:00:13]} Bxe4 {[%emt 0:01:19]} 29. fxe4 {[%emt 0:00:06]} Qxe4+ {[%emt 0:00:09]} 30. Qxe4 {[%emt 0:00:03]} Rxe4 {[%emt 0:00:04]} 31. cxd6 {[%emt 0:00:25]} Rd4 {[%emt 0:00:09]} 32. Rg5 {[%emt 0:00:29]} Kf8 {[%emt 0:02:28]} 33. Re5 {[%emt 0:00:24]} Kf7 {[%emt 0:01:31]} 34. d7 {[%emt 0:00:06]} Kf6 {[%emt 0:00:02]} 35. Re6+ {[%emt 0:00:13]} 1-0

[Event "WYCC U18 Girls 2019"]
[Site "Mumbai"]
[Date "2019.10.04"]
[Round "4.12"]
[White "Sowa, Wiktoria"]
[Black "Priyanka, Kumari"]
[Result "1-0"]
[ECO "B51"]
[WhiteElo "2016"]
[BlackElo "1921"]
[Annotator "NA"]
[PlyCount "83"]
[EventDate "2019.10.02"]
[EventType "swiss"]
[EventCountry "IND"]
[SourceTitle "playchess.com"]
[Source "ChessBase"]
[SourceQuality "1"]
[TimeControl "40/5400+30:1800+30"]

1. e4 c5 2. Nf3 d6 3. Bb5+ Nd7 4. O-O a6 5. Bd3 Ngf6 6. Re1 b5 7. c3 Bb7 8. a4 e6 9. Bc2 Be7 10. d4 e5 11. Nbd2 O-O 12. Nf1 Re8 13. Ng3 Bf8 14. b3 g6 15. d5 Bg7 16. h3 h6 17. Be3 Nh7 18. Qd2 h5 19. Ng5 Bf6 20. Nxh7 Kxh7 21. Rf1 Qe7 22. Bd3 bxa4 23. Rxa4 Qd8 24. Rfa1 Qb6 25. b4 Reb8 26. Qe2 Qc7 27. Ra5 h4 28. Nf1 Bd8 29. Qg4 Bc8 30. Bg5 Bxg5 31. Qxg5 cxb4 32. Qxh4+ Kg7 33. cxb4 Rxb4 34. Ne3 Nc5 35. Bc2 Bd7 36. R5a3 Rh8 37. Qe7 Re8 38. Nf5+ Kg8 39. Nh6+ Kg7 40. Qxf7+ Kxh6 41. Rg3 g5 42. Qf6+ {Qd8} 1-0

[Event "WYCC U18 Girls 2019"]
[Site "Mumbai"]
[Date "2019.10.04"]
[Round "4.13"]
[White "Hng, Mei-En Emmanuelle"]
[Black "Urh, Zala"]
[Result "0-1"]
[ECO "A06"]
[WhiteElo "2002"]
[BlackElo "2105"]
[Annotator "NA"]
[PlyCount "120"]
[EventDate "2019.10.02"]
[EventType "swiss"]
[EventCountry "IND"]
[SourceTitle "playchess.com"]
[Source "ChessBase"]
[SourceQuality "1"]
[TimeControl "40/5400+30:1800+30"]

1. Nf3 {[%emt 0:00:00]} d5 {[%emt 0:00:00]} 2. c4 {[%emt 0:00:00]} e6 {[%emt 0:02:09]} 3. e3 {[%emt 0:00:38]} Nf6 {[%emt 0:00:32]} 4. Nc3 {[%emt 0:00:56]} Be7 {[%emt 0:02:22]} 5. d4 {[%emt 0:01:13]} O-O {[%emt 0:00:42]} 6. Be2 {[%emt 0:01:45]} b6 {[%emt 0:01:16]} 7. O-O {[%emt 0:01:28]} Bb7 {[%emt 0:00:50]} 8. b3 {[%emt 0:04:09]} c5 {[%emt 0:02:20]} 9. Bb2 {[%emt 0:03:14]} Nc6 {[%emt 0:00:30]} 10. cxd5 {[%emt 0:00:30]} exd5 {[%emt 0:00:30]} 11. Rc1 {[%emt 0:00:30]} Rc8 {[%emt 0:00:30]} 12. Qd3 {[%emt 0:00:30]} Re8 {[%emt 0:00:30]} 13. Rfd1 {[%emt 0:00:30]} Bf8 {[%emt 0:00:30]} 14. Bf1 {[%emt 0:00:30]} Ne7 {[%emt 0:00:30]} 15. Qb1 {[%emt 0:00:30]} Ng6 {[%emt 0:00:30]} 16. dxc5 {[%emt 0:00:30]} bxc5 {[%emt 0:29:17]} 17. Bb5 {[%emt 0:51:44]} Re7 {[%emt 0:13:13]} 18. Qf5 {[%emt 0:03:06]} a6 {[%emt 0:03:19]} 19. Bd3 {[%emt 0:04:04]} Rd7 {[%emt 0:03:24]} 20. Ne2 {[%emt 0:01:30]} Rd6 {[%emt 0:02:12]} 21. h4 {[%emt 0:02:37]} d4 {[%emt 0:06:26]} 22. exd4 {[%emt 0:02:00]} cxd4 {[%emt 0:01:21]} 23. h5 {[%emt 0:04:38]} Rd5 {[%emt 0:05:05]} 24. hxg6 {[%emt 0:04:50]} Rxf5 {[%emt 0:00:12]} 25. gxf7+ {[%emt 0:00:09]} Kxf7 {[%emt 0:01:08]} 26. Bxf5 {[%emt 0:00:05]} Rxc1 {[%emt 0:00:16]} 27. Ng5+ {[%emt 0:03:38]} Ke8 {[%emt 0:01:02]} 28. Bxc1 {[%emt 0:00:25]} Qd5 {[%emt 0:01:51]} 29. Bh3 {[%emt 0:01:20]} d3 {[%emt 0:07:39]} 30. Nc3 {[%emt 0:02:20]} Qc5 {[%emt 0:04:53]} 31. Re1+ {[%emt 0:00:58]} Be7 {[%emt 0:00:06]} 32. Bd2 {[%emt 0:00:06]} Nd5 {[%emt 0:03:23]} 33. Ne6 {[%emt 0:00:46]} Qxc3 {[%emt 0:05:10]} 34. Bxc3 {[%emt 0:00:19]} Nxc3 {[%emt 0:00:01]} 35. Bg4 {[%emt 0:03:09]} d2 {[%emt 0:00:08]} 36. Ra1 {[%emt 0:01:08]} Bf6 {[%emt 0:01:11]} 37. Kh2 {[%emt 0:01:42]} Be4 {[%emt 0:01:47]} 38. Nc5 {[%emt 0:00:53]} Bc2 {[%emt 0:00:38]} 39. Rh1 {[%emt 0:00:30]} d1=Q {[%emt 0:01:23]} 40. Bxd1 {[%emt 0:00:08]} Nxd1 {[%emt 0:00:23]} 41. Nxa6 {[%emt 0:01:19]} Nxf2 {[%emt 0:03:56]} 42. Re1+ {[%emt 0:02:45]} Kf7 {[%emt 0:01:44]} 43. Nb4 {[%emt 0:03:44]} Bf5 {[%emt 0:03:56]} 44. Nd5 {[%emt 0:06:35]} Nd3 {[%emt 0:04:44]} 45. Rf1 {[%emt 0:03:13]} Be5+ {[%emt 0:01:20]} 46. g3 {[%emt 0:03:15]} Ke6 {[%emt 0:00:45]} 47. Nf4+ {[%emt 0:00:41]} Nxf4 {[%emt 0:02:07]} 48. gxf4 {[%emt 0:00:01]} Bd6 {[%emt 0:01:20]} 49. Kg2 {[%emt 0:00:56]} Be4+ {[%emt 0:01:04]} 50. Kg3 {[%emt 0:04:15]} Kf5 {[%emt 0:00:28]} 51. a4 {[%emt 0:00:18]} g5 {[%emt 0:01:11]} 52. a5 {[%emt 0:00:05]} gxf4+ {[%emt 0:02:28]} 53. Kh3 {[%emt 0:00:30]} f3 {[%emt 0:02:02]} 54. a6 {[%emt 0:00:04]} Kf4 {[%emt 0:00:30]} 55. a7 {[%emt 0:00:36]} Bc5 {[%emt 0:00:33]} 56. Ra1 {[%emt 0:01:00]} f2 {[%emt 0:00:27]} 57. Kh2 {[%emt 0:00:57]} Bxa7 {[%emt 0:00:39]} 58. b4 {[%emt 0:00:21]} Bd4 {[%emt 0:00:38]} 59. Rc1 {[%emt 0:00:18]} Ke3 {[%emt 0:00:28]} 60. b5 {[%emt 0:05:05]} Kd2 {[%emt 0:00:41]} 0-1

[Event "WYCC U18 Girls 2019"]
[Site "Mumbai"]
[Date "2019.10.04"]
[Round "4.14"]
[White "Makhija, Aashna"]
[Black "Azali, Tannaz"]
[Result "1/2-1/2"]
[ECO "B44"]
[WhiteElo "2084"]
[BlackElo "2022"]
[Annotator "NA"]
[PlyCount "99"]
[EventDate "2019.10.02"]
[EventType "swiss"]
[EventCountry "IND"]
[SourceTitle "playchess.com"]
[Source "ChessBase"]
[SourceQuality "1"]
[TimeControl "40/5400+30:1800+30"]

1. e4 c5 2. Nf3 e6 3. d4 cxd4 4. Nxd4 Nc6 5. Nb5 d6 6. c4 Nf6 7. N1c3 a6 8. Na3 Be7 9. Be2 O-O 10. O-O b6 11. Be3 Bb7 12. f3 Re8 13. Na4 Nd7 14. Qd2 Qc7 15. Rac1 Nc5 16. Nc3 Rad8 17. Nc2 Ne5 18. b4 Ncd7 19. Nd4 Nf6 20. Rfd1 Qb8 21. Nb3 d5 22. Bxb6 dxe4 23. Bxd8 Rxd8 24. Qe3 Rxd1+ 25. Rxd1 exf3 26. gxf3 Ng6 27. Nc5 Bc8 28. N3e4 Qxb4 29. Nxf6+ gxf6 30. Nd3 Qa3 31. Qd2 e5 32. Rb1 Bf5 33. Rb3 Qd6 34. Qe3 Qc6 35. Qh6 Bd6 36. Nf2 e4 37. fxe4 Bxe4 38. Nxe4 Qxe4 39. Qe3 Qxe3+ 40. Rxe3 Bc5 41. Kf2 f5 42. Kf3 Nh4+ 43. Kg3 Bxe3 44. Kxh4 Kg7 45. c5 Bxc5 46. Kg5 f4 47. Kxf4 Bd6+ 48. Kf5 Bxh2 49. Bxa6 f6 50. Be2 1/2-1/2